bitfinex-derivatives/quotes_ETHF0:USTF0_20241013
["timestamp","ask_amount","ask_price","bid_price","bid_amount"]
[1728801533376,4.0238,2467.4,2467.3,4.47179177]
[1728801533582,4.0238,2467.4,2467.3,4.97875786]
[1728801535781,6.1537138,2467.4,2467.3,4.97875786]
[1728801536485,2.9459138,2467.4,2467.3,4.97875786]
[1728801536778,4.0238,2467.4,2467.3,4.97875786]
[1728801536978,6.1537138,2467.4,2467.3,4.9788362]
[1728801538182,6.5590538,2467.4,2467.3,4.9788362]
[1728801538483,6.1537138,2467.4,2467.3,4.9788362]
[1728801539085,6.1537138,2467.4,2467.3,4.97923041]
[1728801540082,6.1537138,2467.4,2467.3,3.38582528]
[1728801540384,6.1537138,2467.4,2467.3,2.44793801]
[1728801540683,6.1537138,2467.4,2467.3,1.94097192]
[1728801541584,6.1537138,2467.4,2467.3,2.00926589]
[1728801541792,6.1537138,2467.4,2467.3,2.84574508]
[1728801542080,6.1537138,2467.4,2467.3,3.08184944]
[1728801542488,5.3377138,2467.4,2467.3,3.08202454]
[1728801542688,5.3377138,2467.4,2467.3,3.58898154]
[1728801543582,5.3377138,2467.4,2467.3,3.25945949]
[1728801543784,5.3377138,2467.4,2467.3,3.58898055]
[1728801543986,5.3377138,2467.4,2467.3,4.90898055]
[1728801544375,3.2078,2467.4,2467.3,7.03367983]
[1728801544783,3.2078,2467.4,2467.3,9.1005134]
[1728801544784,4.80438621,2467.4,2467.3,9.1005134]
[1728801544985,4.80439424,2467.4,2467.3,5.71367246]
[1728801545485,3.2078,2467.4,2467.3,5.71367246]
[1728801545875,4.80432972,2467.4,2467.3,5.71367246]
[1728801546284,4.80432027,2467.4,2467.3,5.71367246]
[1728801547178,4.80432027,2467.4,2467.3,5.71345493]
[1728801547387,3.2078,2467.4,2467.3,5.71345493]
[1728801547682,3.2078,2467.4,2467.3,5.71346043]
[1728801548375,3.6285,2467.4,2467.3,5.71328116]
[1728801549783,5.22487459,2467.4,2467.3,5.71328116]
[1728801550179,5.22488257,2467.4,2467.3,3.58858188]
[1728801550385,3.6285,2467.4,2467.3,3.58858188]
[1728801550589,5.22485453,2467.4,2467.3,5.71328116]
[1728801551084,0.4207,2467.4,2467.3,3.58858188]
[1728801551384,2.01705018,2467.4,2467.3,3.58858188]
[1728801552085,2.01705018,2467.4,2467.3,5.71315552]
[1728801552777,0.4207,2467.4,2467.3,3.58845624]
[1728801553081,2.01701836,2467.4,2467.3,3.58845624]
[1728801553279,2.01701451,2467.4,2467.3,3.58845624]
[1728801553886,2.01700561,2467.4,2467.3,3.58844273]
[1728801554082,2.01700561,2467.4,2467.3,2.39044994]
[1728801554386,0.4207,2467.4,2467.3,3.58842771]
[1728801554586,2.01700576,2467.4,2467.3,3.58842771]
[1728801554988,0.4207,2467.4,2467.3,3.58842771]
[1728801555184,2.01700013,2467.4,2467.3,3.58842771]
[1728801555491,2.01699554,2467.4,2467.3,3.58842771]
[1728801555791,2.01699554,2467.4,2467.3,1.65512593]
[1728801555985,2.01699554,2467.4,2467.3,2.27031329]
[1728801556183,2.01699554,2467.4,2467.3,3.58839411]
[1728801556891,2.01699554,2467.4,2467.3,2.39041634]
[1728801557191,0.4207,2467.4,2467.3,3.58835668]
[1728801557993,0.4207,2467.4,2467.3,3.38557502]
[1728801559393,3.6285,2467.4,2467.3,3.38557502]
[1728801559693,0.8177,2467.4,2467.3,2.57448547]
[1728801559885,0.8177,2467.4,2467.3,3.3856278]
[1728801560282,4.0255,2467.4,2467.3,3.3856278]
[1728801560679,3.2078,2467.4,2467.3,5.31377336]
[1728801560886,4.8040635,2467.4,2467.3,9.83428173]
[1728801561088,1.06415234,2467.4,2467.3,14.41827447]
[1728801561294,1.5962635,2467.5,2467.3,14.01291447]
[1728801561295,1.06415234,2467.5,2467.3,14.01291447]
[1728801561589,1.06415234,2467.6,2467.4,7.70775233]
[1728801561791,1.06415234,2467.6,2467.5,10.24651649]
[1728801562288,1.06415234,2467.6,2467.5,14.70463649]
[1728801562588,1.06415234,2467.7,2467.6,0.40531]
[1728801562788,1.06415234,2467.8,2467.6,13.37584655]
[1728801562992,1.06415234,2467.8,2467.6,2.12352937]
[1728801562993,1.06415234,2467.7,2467.6,2.12352937]
[1728801563184,1.06415234,2467.7,2467.6,8.10306859]
[1728801563390,1.06415234,2467.8,2467.6,9.76239652]
[1728801563694,1.06415234,2467.8,2467.7,4.4675168]
[1728801563887,1.06415234,2467.8,2467.7,5.7875168]
[1728801564087,1.06415234,2467.8,2467.7,6.29437012]
[1728801564486,2.27485234,2467.9,2467.7,4.70295661]
[1728801564685,2.27485234,2467.9,2467.8,5.02646726]
[1728801565288,2.5307,2467.9,2467.8,4.89975393]
[1728801566188,2.5307,2467.9,2467.8,4.89856658]
[1728801566496,2.5307,2467.9,2467.8,4.36759231]
[1728801566990,2.5307,2467.9,2467.8,4.08232819]
[1728801567186,2.5307,2467.9,2467.8,3.57547167]
[1728801567388,2.5307,2467.9,2467.8,2.37992299]
[1728801569399,2.5307,2467.9,2467.8,1.32]
[1728801571098,1.06415234,2468.2,2467.9,0.40526]
[1728801571287,2.27205234,2468.2,2468.1,1.32]
[1728801571492,1.2079,2468.2,2468.1,1.32]
[1728801575704,4.5278,2468.4,2468.1,1.72523]
[1728801575904,5.3271,2468.4,2468.1,1.72523]
[1728801576794,5.3271,2468.4,2468.1,1.32]
[1728801578499,2.1193,2468.4,2468.1,1.32]
[1728801578804,5.3271,2468.4,2468.1,1.32]
[1728801579404,5.3271,2468.4,2468.1,1.7077]
[1728801580105,5.3271,2468.4,2468.1,2.11293]
[1728801583703,4.0071,2468.4,2468.3,1.72519]
[1728801583905,4.0071,2468.4,2468.3,1.32]
[1728801585511,4.0071,2468.4,2468.3,1.72519]
[1728801586404,4.0071,2468.4,2468.3,1.32]
[1728801586816,4.0071,2468.4,2468.3,1.72519]
[1728801588209,0.7993,2468.4,2468.3,1.72519]
[1728801589007,0.7993,2468.4,2468.3,1.32]
[1728801589616,0.7993,2468.4,2468.3,1.72519]
[1728801591206,0.7993,2468.4,2468.3,1.32]
[1728801597813,0.7993,2468.4,2468.1,0.3877]
[1728801598015,0.7993,2468.4,2468.2,1.32]
[1728801601312,1.32,2468.3,2468.2,1.32]
[1728801607310,1.32,2468.3,2468.2,2.37905614]
[1728801608215,1.86345234,2468.4,2468.2,2.66393228]
[1728801608415,1.86345234,2468.4,2468.2,2.37905614]
[1728801609426,1.06415234,2468.3,2468.2,2.37905614]
[1728801609721,1.06415234,2468.3,2468.2,3.1707256]
[1728801610315,1.06415234,2468.3,2468.2,4.36566508]
[1728801610924,1.06415234,2468.3,2468.2,3.57399562]
[1728801611115,1.06415234,2468.3,2468.2,4.36569408]
[1728801612421,1.06415234,2468.3,2468.2,3.85892431]
[1728801612623,1.06415234,2468.3,2468.2,4.36569396]
[1728801612823,1.06415234,2468.3,2468.2,4.36590095]
[1728801613216,1.06415234,2468.3,2468.2,4.49259335]
[1728801613417,1.06415234,2468.3,2468.2,5.02445072]
[1728801614725,1.06415234,2468.3,2468.2,5.02462981]
[1728801614919,1.06415234,2468.3,2468.2,5.02462986]
[1728801615413,2.3955635,2468.4,2468.2,5.02462986]
[1728801615622,2.3955635,2468.4,2468.3,1.85227173]
[1728801616228,2.3955635,2468.4,2468.3,1.97896408]
[1728801616428,0.7993,2468.4,2468.3,3.17511232]
[1728801617024,0.7993,2468.4,2468.3,4.49511232]
[1728801617515,0.7993,2468.4,2468.3,3.29896408]
[1728801617716,0.7993,2468.4,2468.3,4.49525135]
[1728801618317,0.7993,2468.4,2468.3,3.02305692]
[1728801618526,0.7993,2468.4,2468.3,3.43505058]
[1728801619532,2.92770748,2468.4,2468.3,3.43505058]
[1728801620432,2.92770748,2468.4,2468.3,5.02596409]
[1728801622127,2.92770748,2468.4,2468.3,5.0256167]
[1728801625534,3.33288748,2468.4,2468.3,3.7056167]
[1728801626330,8.70408748,2468.4,2468.3,3.17589645]
[1728801626630,8.70408748,2468.4,2468.3,1.85291699]
[1728801627328,8.70310147,2468.4,2468.3,1.85291699]
[1728801628539,6.57568,2468.4,2468.3,1.85291699]
[1728801629336,8.70303655,2468.4,2468.3,1.85291699]
[1728801630740,11.91083655,2468.4,2468.3,1.85291699]
[1728801631036,9.78348,2468.4,2468.3,1.85291699]
[1728801631338,11.9107641,2468.4,2468.3,1.85291699]
[1728801633435,11.9107641,2468.4,2468.3,2.35972072]
[1728801633740,11.91075916,2468.4,2468.3,1.85295193]
[1728801634332,9.78348,2468.4,2468.3,1.06119326]
[1728801634939,0.40519,2468.3,2468.2,1.06119326]
[1728801635137,7.90379908,2468.3,2468.2,3.17646728]
[1728801635438,7.90379908,2468.3,2468.2,1.85304209]
[1728801637044,7.90379908,2468.3,2468.2,1.85304712]
[1728801637845,7.90379908,2468.3,2468.2,3.04954111]
[1728801638942,7.90379908,2468.3,2468.2,3.04951372]
[1728801639247,7.90379908,2468.3,2468.2,1.85304712]
[1728801639447,7.90379908,2468.3,2468.2,3.0495015]
[1728801639750,7.90379908,2468.3,2468.2,1.85304712]
[1728801639943,9.68471986,2468.3,2468.1,1.06119326]
[1728801640247,4.24492933,2468.2,2468.1,1.06119326]
[1728801640645,8.29692933,2468.2,2468.1,1.06119326]
[1728801640837,7.89171933,2468.2,2468.0,1.06119326]
[1728801641039,7.88351354,2468.1,2468.0,1.06119326]
[1728801641242,7.88300651,2468.1,2467.9,1.06119326]
[1728801642139,1.32,2468.0,2467.9,1.06119326]
[1728801642449,1.72524,2468.0,2467.9,1.06119326]
[1728801642649,1.32,2468.0,2467.8,2.38119326]
[1728801642943,1.59456927,2467.9,2467.8,2.38119326]
[1728801643149,1.59456927,2467.9,2467.8,4.49581627]
[1728801643337,1.59456927,2467.9,2467.8,4.36910154]
[1728801644244,6.12236927,2468.0,2467.8,3.17291999]
[1728801644450,1.0627227,2467.9,2467.8,2.38119326]
[1728801644656,1.0627227,2467.9,2467.8,2.66597194]
[1728801645446,1.0627227,2467.9,2467.8,3.17283096]
[1728801646345,1.0627227,2467.9,2467.8,2.66597194]
[1728801646839,1.0627227,2467.9,2467.8,2.38119326]
[1728801647045,2.7879827,2467.9,2467.8,1.06119326]
[1728801647244,3.30216927,2467.9,2467.7,1.06119326]
[1728801647442,4.10414927,2467.8,2467.6,1.45029326]
[1728801647643,4.27024635,2467.7,2467.6,0.3891]
[1728801647943,4.80236927,2467.7,2467.6,0.3891]
[1728801648346,4.26998221,2467.7,2467.6,0.3891]
[1728801649256,4.26998221,2467.7,2467.6,1.7091]
[1728801649454,1.06218221,2467.8,2467.7,0.40529]
[1728801649753,1.06218221,2467.9,2467.7,1.73124526]
[1728801650052,1.06218221,2467.9,2467.8,3.31257403]
[1728801650748,3.2078,2468.0,2467.8,5.56828951]
[1728801650958,3.2078,2468.0,2467.9,1.32]
[1728801651156,3.2078,2468.0,2467.9,1.719]
[1728801653953,3.2078,2468.0,2467.9,2.12426]
[1728801655950,3.2078,2468.0,2467.9,3.18545326]
[1728801656155,3.2078,2468.0,2467.9,2.12426]
[1728801656358,3.2078,2468.0,2467.9,3.18545326]
[1728801656658,1.06218221,2468.1,2467.9,3.18545326]
[1728801656857,4.26998221,2468.2,2468.0,1.32]
[1728801657157,1.06218221,2468.1,2468.0,1.32]
[1728801657850,5.20753927,2468.5,2468.1,0.40522]
[1728801658055,3.61297,2468.5,2468.4,1.32]
[1728801663163,3.2078,2468.5,2468.4,1.32]
[1728801663662,3.61296,2468.5,2468.4,1.32]
[1728801668066,3.2078,2468.5,2468.4,1.32]
[1728801670164,0.80575,2468.6,2468.4,1.32]
[1728801670367,3.2078,2468.5,2468.4,1.32]
[1728801671669,0.80575,2468.6,2468.4,1.32]
[1728801672168,3.61296,2468.5,2468.4,1.32]
[1728801673270,3.2078,2468.5,2468.4,1.32]
[1728801674660,2.12575,2468.6,2468.4,1.32]
[1728801674856,3.2078,2468.5,2468.4,1.32]
[1728801676560,2.12575,2468.6,2468.4,1.32]
[1728801676766,3.2078,2468.5,2468.4,1.32]
[1728801677873,2.12575,2468.6,2468.4,1.32]
[1728801678074,3.2078,2468.5,2468.4,1.32]
[1728801679764,2.12575,2468.6,2468.4,1.32]
[1728801679964,3.2078,2468.5,2468.4,1.32]
[1728801680277,2.12575,2468.6,2468.4,1.32]
[1728801680573,3.2078,2468.5,2468.4,1.32]
[1728801682677,2.12575,2468.6,2468.4,1.32]
[1728801682867,3.2078,2468.5,2468.4,1.32]
[1728801683971,2.12575,2468.6,2468.4,1.32]
[1728801684171,2.12575,2468.6,2468.5,1.32]
[1728801690777,1.7206,2468.6,2468.4,1.32]
[1728801690978,0.40516,2468.5,2468.4,1.32]
[1728801692682,4.9284,2468.6,2468.4,1.32]
[1728801692883,5.33355,2468.6,2468.4,1.32]
[1728801693378,4.9284,2468.6,2468.4,1.32]
[1728801693573,0.40516,2468.5,2468.4,1.32]
[1728801694179,5.33356,2468.6,2468.4,1.32]
[1728801694579,0.40516,2468.5,2468.4,1.32]
[1728801695575,0.40516,2468.5,2468.3,2.37889413]
[1728801695576,1.72517,2468.5,2468.3,2.37889413]
[1728801695783,0.4211,2468.4,2468.3,2.37889413]
[1728801695979,1.22688,2468.4,2468.3,2.37889413]
[1728801696283,0.8217,2468.4,2468.3,2.37889413]
[1728801697174,0.8217,2468.4,2468.3,3.17018217]
[1728801698286,0.8217,2468.4,2468.3,4.36790837]
[1728801698885,0.8217,2468.4,2468.3,4.3679389]
[1728801699184,0.8217,2468.4,2468.3,4.08339665]
[1728801699385,0.8217,2468.4,2468.3,3.86131586]
[1728801699574,0.8217,2468.4,2468.3,4.49474695]
[1728801699779,0.8217,2468.4,2468.3,4.36806074]
[1728801700190,0.8217,2468.4,2468.3,4.49474696]
[1728801700388,0.8217,2468.4,2468.3,5.02676634]
[1728801701094,3.31973927,2468.5,2468.3,5.02676634]
[1728801701095,1.59456927,2468.5,2468.3,5.02676634]
[1728801701389,3.34352651,2468.6,2468.4,3.29828815]
[1728801701588,3.34352651,2468.6,2468.5,0.28477244]
[1728801701985,3.34352651,2468.6,2468.4,2.38008704]
[1728801702183,3.34352651,2468.6,2468.5,0.79159314]
[1728801702888,3.73102651,2468.6,2468.5,0.79159314]
[1728801703285,3.73102651,2468.6,2468.5,1.97836423]
[1728801703286,1.60455,2468.6,2468.5,1.97836423]
[1728801703590,4.26505935,2468.6,2468.5,1.97836223]
[1728801706389,3.73217732,2468.6,2468.5,3.17762795]
[1728801706790,3.73217732,2468.6,2468.5,2.11754091]
[1728801706988,3.73217732,2468.6,2468.5,2.11754022]
[1728801707191,3.73217732,2468.6,2468.5,2.11753011]
[1728801708586,1.60455,2468.6,2468.5,3.17859414]
[1728801708986,3.73215354,2468.6,2468.5,2.11753011]
[1728801709694,1.60455,2468.6,2468.5,3.17859775]
[1728801709893,3.73215403,2468.6,2468.5,3.17859775]
[1728801710290,3.73215403,2468.6,2468.5,3.17859183]
[1728801710495,3.73215403,2468.6,2468.5,2.11753011]
[1728801710793,3.73215403,2468.6,2468.5,1.83267199]
[1728801711005,1.60455,2468.6,2468.5,3.17872972]
[1728801714295,3.73214582,2468.6,2468.5,2.11766727]
[1728801715504,3.73214582,2468.6,2468.5,3.70858078]
[1728801715794,3.73214582,2468.6,2468.5,2.11766727]
[1728801716795,3.73214582,2468.6,2468.5,0.91841166]
[1728801717005,3.73214582,2468.6,2468.5,2.11764543]
[1728801717505,3.73214582,2468.6,2468.5,1.99096216]
[1728801717696,3.73214582,2468.6,2468.5,2.11764608]
[1728801718295,3.73214582,2468.6,2468.5,3.70855959]
[1728801718700,3.73214582,2468.6,2468.5,2.11764608]
[1728801718899,3.73214582,2468.6,2468.5,3.70855959]
[1728801719299,3.73214582,2468.6,2468.5,2.11764608]
[1728801720301,3.73214582,2468.6,2468.5,3.70855959]
[1728801720503,3.73214582,2468.6,2468.5,2.11764608]
[1728801721001,3.73214582,2468.6,2468.5,1.7059498]
[1728801721192,3.73214582,2468.6,2468.5,2.62436371]
[1728801721594,6.93994582,2468.6,2468.5,2.1176306]
[1728801722514,3.73214582,2468.6,2468.5,2.1176306]
[1728801722697,6.93994582,2468.6,2468.5,2.1176306]
[1728801723203,6.93994582,2468.6,2468.5,3.70854411]
[1728801724299,3.73214582,2468.6,2468.5,3.70854411]
[1728801724499,3.73214582,2468.6,2468.5,3.7085398]
[1728801725196,3.73214582,2468.6,2468.5,3.70851379]
[1728801726103,6.93994582,2468.6,2468.5,3.70851379]
[1728801726505,3.73214582,2468.6,2468.5,3.70851379]
[1728801726698,6.93994582,2468.6,2468.5,3.70851379]
[1728801728009,3.73214582,2468.6,2468.5,3.70851379]
[1728801728213,3.73214582,2468.6,2468.5,2.79010419]
[1728801728503,3.73214582,2468.6,2468.5,3.70851185]
[1728801728699,6.93994582,2468.6,2468.5,3.70851185]
[1728801729116,3.73214582,2468.6,2468.5,3.70851185]
[1728801729295,6.93994582,2468.6,2468.5,3.70851185]
[1728801729899,3.73214582,2468.6,2468.5,3.70851185]
[1728801730109,6.93994582,2468.6,2468.5,3.70850587]
[1728801730311,6.93994582,2468.6,2468.5,2.79009821]
[1728801730511,6.93994582,2468.6,2468.5,1.99091443]
[1728801730710,6.93994582,2468.6,2468.5,3.58182794]
[1728801730907,6.93994582,2468.6,2468.5,1.48418261]
[1728801731407,3.73214582,2468.6,2468.5,1.48418261]
[1728801731609,6.93994582,2468.6,2468.5,2.26019855]
[1728801731810,3.73214582,2468.6,2468.5,2.26019855]
[1728801732107,6.93994582,2468.6,2468.5,2.26019855]
[1728801732306,3.73214582,2468.6,2468.5,1.1991847]
[1728801732507,6.93994582,2468.6,2468.5,3.20177427]
[1728801732699,6.93994582,2468.6,2468.5,1.99091083]
[1728801733097,6.93994582,2468.6,2468.5,3.58182434]
[1728801733602,6.93994582,2468.6,2468.5,2.90930432]
[1728801733904,6.93994582,2468.6,2468.5,4.50021783]
[1728801734608,6.93994582,2468.6,2468.5,2.90930432]
[1728801734913,6.93994582,2468.6,2468.5,4.50021783]
[1728801735598,6.93994582,2468.6,2468.5,4.50020595]
[1728801735798,6.93994582,2468.6,2468.5,3.99347674]
[1728801736007,6.93994582,2468.6,2468.5,4.50020548]
[1728801736605,6.93994582,2468.6,2468.5,4.37352243]
[1728801736811,6.93994582,2468.6,2468.5,4.50020367]
[1728801737410,3.73214582,2468.6,2468.5,4.50020367]
[1728801737714,6.93994582,2468.6,2468.5,4.50020367]
[1728801739805,6.93994582,2468.6,2468.5,4.50014165]
[1728801740706,6.93994582,2468.6,2468.5,4.50014098]
[1728801744618,6.93994582,2468.6,2468.5,4.50017044]
[1728801744812,3.73214582,2468.6,2468.5,4.50026753]
[1728801745221,6.93994582,2468.6,2468.5,4.50026753]
[1728801745716,6.93994582,2468.6,2468.5,3.7085414]
[1728801747514,6.93994582,2468.6,2468.5,2.79013328]
[1728801747720,6.93994582,2468.6,2468.5,3.70858647]
[1728801748021,4.81235,2468.6,2468.5,4.2153199]
[1728801748523,4.81235,2468.6,2468.5,3.70858809]
[1728801748821,6.94016405,2468.6,2468.5,3.70858809]
[1728801749718,6.94016405,2468.6,2468.5,3.70872694]
[1728801750118,4.81235,2468.6,2468.5,3.70872694]
[1728801751425,4.81235,2468.6,2468.5,3.29700428]
[1728801751723,4.81235,2468.6,2468.5,3.70872422]
[1728801751929,1.60455,2468.6,2468.5,3.70872422]
[1728801752326,4.81235,2468.6,2468.5,3.70872422]
[1728801752926,1.60455,2468.6,2468.5,3.70872422]
[1728801753127,4.81235,2468.6,2468.5,3.70872422]
[1728801754223,6.9404088,2468.6,2468.5,4.16481627]
[1728801754428,6.9404088,2468.6,2468.5,4.16490046]
[1728801754727,4.81235,2468.6,2468.5,3.70880841]
[1728801755623,4.81235,2468.6,2468.5,3.20207559]
[1728801755822,4.81235,2468.6,2468.5,3.70880766]
[1728801756219,1.60455,2468.6,2468.5,3.70880766]
[1728801756420,4.81235,2468.6,2468.5,3.70880766]
[1728801756924,1.60455,2468.6,2468.5,3.70880766]
[1728801757124,4.81235,2468.6,2468.5,3.70880766]
[1728801759423,4.81235,2468.6,2468.5,4.16494262]
[1728801760124,4.81235,2468.6,2468.5,3.70884004]
[1728801760527,4.81235,2468.6,2468.5,4.16494096]
[1728801761626,6.94043394,2468.6,2468.5,4.1649499]
[1728801762029,6.94043394,2468.6,2468.5,4.97571108]
[1728801762822,6.94043394,2468.6,2468.5,4.1649499]
[1728801762823,3.73263394,2468.6,2468.5,4.1649499]
[1728801763229,3.73263394,2468.6,2468.5,4.16494223]
[1728801763433,6.94043394,2468.6,2468.5,4.16494223]
[1728801764029,3.73263394,2468.6,2468.5,4.16494223]
[1728801764230,6.94043394,2468.6,2468.5,4.16493388]
[1728801764530,3.73263394,2468.6,2468.5,4.16493388]
[1728801764725,6.94043394,2468.6,2468.5,4.16493388]
[1728801764918,6.94041506,2468.6,2468.5,4.16493388]
[1728801765125,1.60455,2468.6,2468.5,4.16493388]
[1728801765319,6.94040613,2468.6,2468.5,4.16493388]
[1728801766234,4.81235,2468.6,2468.5,4.16493388]
[1728801766424,4.81235,2468.6,2468.5,3.70882402]
[1728801767025,4.81235,2468.6,2468.5,3.0754232]
[1728801767026,1.60455,2468.6,2468.5,3.0754232]
[1728801767224,1.60455,2468.6,2468.5,3.70883622]
[1728801767430,4.81235,2468.6,2468.5,3.70883622]
[1728801769030,4.81235,2468.6,2468.5,2.50936938]
[1728801769230,4.81235,2468.6,2468.5,3.70879727]
[1728801769425,3.2078,2468.6,2468.5,3.70879727]
[1728801769627,2.12808166,2468.6,2468.5,6.29564904]
[1728801770033,2.12808166,2468.6,2468.5,6.68384904]
[1728801770836,2.52508166,2468.6,2468.5,6.55716644]
[1728801771047,2.12808166,2468.6,2468.5,5.49803647]
[1728801771239,2.12808166,2468.6,2468.5,6.0928176]
[1728801771436,2.12808166,2468.6,2468.5,10.1440176]
[1728801772033,1.59579745,2468.6,2468.5,11.86238697]
[1728801772336,1.59561585,2468.6,2468.5,11.86238697]
[1728801772531,1.59563144,2468.6,2468.5,9.7388576]
[1728801773235,1.59563144,2468.6,2468.5,9.53617647]
[1728801773440,2.12808166,2468.7,2468.5,9.53617647]
[1728801773741,2.12808166,2468.7,2468.6,5.02881529]
[1728801774036,2.12808166,2468.7,2468.6,5.42403382]
[1728801774739,2.12808166,2468.7,2468.6,5.82917382]
[1728801774934,2.12808166,2468.7,2468.6,5.54410933]
[1728801775136,2.12808166,2468.7,2468.6,5.8289481]
[1728801776037,2.12808166,2468.8,2468.6,5.4238081]
[1728801776238,2.12808166,2468.8,2468.7,3.17191814]
[1728801777530,5.33588166,2468.8,2468.7,3.17191814]
[1728801779036,5.33588166,2468.8,2468.7,3.17191626]
[1728801779934,5.74099166,2468.8,2468.7,3.17191626]
[1728801781740,5.74099166,2468.8,2468.7,2.88707749]
[1728801781945,5.74099166,2468.8,2468.7,3.1718431]
[1728801782139,5.74099166,2468.8,2468.7,3.29851439]
[1728801782334,5.74099166,2468.8,2468.7,4.37007216]
[1728801782539,5.74099166,2468.8,2468.7,4.49674281]
[1728801783444,5.74099166,2468.8,2468.7,4.37007216]
[1728801783646,3.61291,2468.8,2468.7,4.37007216]
[1728801783845,5.74099166,2468.8,2468.7,3.1718431]
[1728801784045,6.54739166,2468.8,2468.7,2.66515581]
[1728801784347,6.54739166,2468.8,2468.7,2.38039138]
[1728801784539,6.54739166,2468.8,2468.7,1.32]
[1728801788247,0.40514,2468.6,2468.5,2.38039138]
[1728801788544,2.53142738,2468.6,2468.5,1.32]
[1728801790243,2.12628738,2468.6,2468.5,1.32]
[1728801790447,2.53142738,2468.6,2468.5,1.32]
[1728801792248,5.73922738,2468.6,2468.5,1.32]
[1728801794349,2.53142738,2468.6,2468.5,1.32]
[1728801794544,5.73922738,2468.6,2468.5,1.32]
[1728801798156,2.53142738,2468.6,2468.5,1.32]
[1728801798555,5.73922738,2468.6,2468.5,1.32]
[1728801799151,2.53142738,2468.6,2468.5,1.32]
[1728801799351,5.73922738,2468.6,2468.5,1.32]
[1728801800044,2.53142738,2468.6,2468.5,1.32]
[1728801800557,5.73922738,2468.6,2468.5,1.32]
[1728801800954,5.73922738,2468.6,2468.4,1.06039138]
[1728801800955,0.40516,2468.5,2468.4,2.38039138]
[1728801801262,1.19826,2468.5,2468.4,3.17188168]
[1728801801556,1.19826,2468.5,2468.4,3.1718807]
[1728801801754,1.19826,2468.5,2468.4,2.66512497]
[1728801801962,1.19826,2468.5,2468.4,3.17188062]
[1728801802255,1.19826,2468.5,2468.4,2.66512497]
[1728801802456,4.40606,2468.5,2468.4,2.66512497]
[1728801802955,4.40606,2468.5,2468.1,2.54672937]
[1728801802956,9.3721,2468.5,2468.2,1.06039138]
[1728801803258,9.3721,2468.5,2468.2,2.38039138]
[1728801803259,0.40519,2468.3,2468.2,2.38039138]
[1728801803653,1.9995305,2468.3,2468.2,2.38039138]
[1728801804954,2.53124655,2468.3,2468.2,1.32]
[1728801808559,0.40519,2468.3,2468.2,1.32]
[1728801809262,0.40521,2468.2,2468.1,1.32]
[1728801809463,5.61811486,2468.2,2468.1,1.32]
[1728801810160,6.03951486,2468.2,2468.1,1.32]
[1728801810562,5.63430486,2468.2,2468.1,1.32]
[1728801811659,4.44641,2468.2,2468.1,1.32]
[1728801811967,4.0412,2468.2,2468.1,1.32]
[1728801812355,5.10290949,2468.2,2468.1,1.32]
[1728801812958,1.89510949,2468.2,2468.1,1.32]
[1728801813265,5.50811949,2468.2,2468.1,1.32]
[1728801813765,5.10290949,2468.2,2468.1,1.32]
[1728801815068,5.50811949,2468.2,2468.1,1.32]
[1728801816564,6.82811949,2468.2,2468.1,1.32]
[1728801818265,0.40523,2468.1,2468.0,1.32]
[1728801818461,0.81313,2468.1,2468.0,1.32]
[1728801819566,0.4079,2468.1,2468.0,1.32]
[1728801819761,0.81313,2468.1,2468.0,1.32]
[1728801825866,0.4079,2468.1,2468.0,1.32]
[1728801827766,0.81313,2468.1,2468.0,1.32]
[1728801828876,3.19483949,2468.1,2467.9,1.45829138]
[1728801829062,1.72525,2468.0,2467.8,2.38039138]
[1728801829269,3.2078,2467.9,2467.8,2.38039138]
[1728801831372,3.2078,2467.9,2467.8,1.32]
[1728801831974,3.2078,2467.9,2467.8,2.38039138]
[1728801833075,3.2078,2467.9,2467.8,2.66493323]
[1728801833276,3.2078,2467.9,2467.8,2.38039138]
[1728801833984,3.2078,2467.9,2467.8,3.17182997]
[1728801834172,3.2078,2467.9,2467.8,2.66497607]
[1728801834373,1.06170949,2468.0,2467.8,3.17182555]
[1728801834681,1.06170949,2468.0,2467.9,1.32]
[1728801840286,1.06170949,2468.0,2467.8,1.06039138]
[1728801840287,1.59310486,2468.0,2467.8,2.38039138]
[1728801840487,1.06228048,2467.9,2467.8,2.38039138]
[1728801840785,1.06228048,2467.9,2467.8,2.66508794]
[1728801840984,1.06228048,2468.0,2467.8,4.36980052]
[1728801841179,1.06228048,2468.0,2467.8,2.38039138]
[1728801841582,1.06228048,2467.9,2467.8,2.38039138]
[1728801841791,1.06228048,2467.9,2467.8,3.17659965]
[1728801841991,1.46754048,2467.9,2467.8,3.0498876]
[1728801842187,3.59084048,2467.9,2467.8,1.85194974]
[1728801842397,3.59084048,2467.9,2467.8,1.85197047]
[1728801842789,0.40528,2467.8,2467.7,1.06039138]
[1728801843089,5.98031326,2467.8,2467.6,1.06039138]
[1728801843286,1.46780326,2467.7,2467.6,1.06039138]
[1728801843483,1.46780326,2467.7,2467.6,2.25862605]
[1728801843685,1.46780326,2467.7,2467.6,1.06039138]
[1728801843886,1.46780326,2467.7,2467.6,1.34517219]
[1728801844287,1.46780326,2467.7,2467.5,2.80239138]
[1728801844485,0.40529,2467.7,2467.6,1.06039138]
[1728801845285,1.46777564,2467.7,2467.5,2.80239138]
[1728801845484,1.32,2467.6,2467.5,2.80239138]
[1728801845692,1.32,2467.6,2467.5,4.79249261]
[1728801845989,2.38248564,2467.6,2467.5,4.79249261]
[1728801846196,1.32,2467.6,2467.5,4.79249261]
[1728801846390,1.32,2467.6,2467.5,4.28557593]
[1728801846590,1.06248564,2467.6,2467.5,4.28557593]
[1728801846784,1.06248564,2467.6,2467.5,5.20400627]
[1728801847291,2.78777564,2467.7,2467.5,5.20400627]
[1728801847595,1.06248564,2467.6,2467.5,3.08717063]
[1728801847790,1.06248564,2467.6,2467.5,4.14365337]
[1728801847996,1.06248564,2467.6,2467.5,3.85887412]
[1728801848289,1.72529,2467.7,2467.5,4.91916734]
[1728801848290,2.78777564,2467.7,2467.5,4.91916734]
[1728801848494,3.31839486,2467.7,2467.6,1.06029322]
[1728801849092,3.31839486,2467.7,2467.5,2.80229322]
[1728801849093,1.72529,2467.7,2467.5,2.80229322]
[1728801849294,1.0625889,2467.6,2467.5,2.80229322]
[1728801849597,1.0625889,2467.6,2467.5,3.85880622]
[1728801850183,1.32,2467.7,2467.5,4.50760412]
[1728801850184,2.3825889,2467.7,2467.5,4.50760412]
[1728801850389,2.3825889,2467.7,2467.5,2.80230227]
[1728801850589,2.3825889,2467.7,2467.6,1.06030227]